bitfinex/quotes_SOLUSD_20240716
["timestamp","ask_amount","ask_price","bid_price","bid_amount"]
[1721099460703,15.63,156.63,156.58,16.058]
[1721099460907,15.63,156.63,156.6,6.3856]
[1721099461405,15.63,156.64,156.61,7.66198208]
[1721099461607,13.04722825,156.66,156.61,7.66198208]
[1721099461801,15.63,156.64,156.61,7.66198208]
[1721099463299,15.63,156.64,156.61,1.27688208]
[1721099463901,6.66402825,156.66,156.62,16.2082]
[1721099464091,15.63,156.67,156.64,6.384]
[1721099464287,14.54652158,156.68,156.64,6.384]
[1721099464589,15.63,156.66,156.63,7.66103757]
[1721099465397,20.92892158,156.68,156.63,7.66103757]
[1721099465604,15.63,156.66,156.63,7.66103757]
[1721099465804,15.63,156.66,156.63,6.3844]
[1721099467209,15.63,156.66,156.64,6.384]
[1721099468331,14.54652158,156.68,156.64,6.384]
[1721099468621,15.63,156.66,156.63,6.3842]
[1721099469611,15.63,156.66,156.64,6.384]
[1721099471818,15.63,156.65,156.62,22.593]
[1721099471998,15.63,156.65,156.63,6.3844]
[1721099472703,15.63,156.65,156.64,6.384]
[1721099474816,14.54652158,156.68,156.64,6.384]
[1721099475016,15.63,156.66,156.65,6.3836]
[1721099478423,14.54652158,156.68,156.65,6.3836]
[1721099478615,14.54652158,156.68,156.66,6.3832]
[1721099478802,15.63,156.67,156.65,6.3835]
[1721099479323,15.63,156.66,156.65,6.3835]
[1721099480319,15.63,156.66,156.64,6.3839]
[1721099480816,15.63,156.65,156.63,6.3843]
[1721099481029,15.63,156.64,156.6,6.5098]
[1721099481216,10.0,156.67,156.61,6.3852]
[1721099481398,15.63,156.62,156.61,6.3852]
[1721099482025,15.63,156.63,156.61,6.3852]
[1721099483622,15.63,156.63,156.59,6.3857]
[1721099483810,15.63,156.62,156.59,6.3857]
[1721099484409,15.63,156.61,156.6,6.3856]
[1721099484612,15.63,156.62,156.6,6.3856]
[1721099485118,16.3839,156.65,156.6,6.3856]
[1721099485338,15.63,156.62,156.6,6.3856]
[1721099485515,15.63,156.61,156.6,6.3856]
[1721099486910,16.3839,156.65,156.6,6.3856]
[1721099487118,15.63,156.62,156.61,6.3852]
[1721099487325,15.63,156.63,156.62,6.3848]
[1721099487527,15.63,156.63,156.61,6.3852]
[1721099488017,15.63,156.62,156.61,6.3852]
[1721099488218,15.63,156.62,156.6,6.3856]
[1721099489231,15.63,156.62,156.59,6.3859]
[1721099489524,15.63,156.61,156.6,6.3856]
[1721099489718,15.63,156.62,156.6,6.3856]
[1721099490934,6.3833,156.66,156.61,6.3852]
[1721099491110,15.63,156.63,156.61,6.3852]
[1721099491629,16.3837,156.65,156.6,6.3856]
[1721099491926,15.63,156.63,156.6,6.3856]
[1721099492238,15.63,156.63,156.61,6.3852]
[1721099494039,15.63,156.62,156.6,6.3856]
[1721099496237,15.63,156.63,156.6,6.3856]
[1721099501352,23.04195182,156.67,156.62,6.3846]
[1721099501526,15.63,156.65,156.62,6.3846]
[1721099503543,15.63,156.65,156.61,1.2768653]
[1721099504530,22.0139,156.65,156.61,1.2768653]
[1721099506038,22.0139,156.65,156.61,7.6620653]
[1721099506236,22.0139,156.65,156.61,1.2768653]
[1721099507041,22.0139,156.65,156.61,7.6620653]
[1721099507541,22.0139,156.65,156.61,1.2768653]
[1721099507737,6.3839,156.65,156.61,1.2768653]
[1721099507944,22.0139,156.65,156.61,1.2768653]
[1721099508628,10.0,156.69,156.61,16.9068653]
[1721099508946,15.63,156.66,156.62,6.3848]
[1721099509552,6.3831,156.67,156.62,6.3848]
[1721099509732,15.63,156.66,156.62,6.3848]
[1721099510925,6.3837,156.65,156.61,22.0152]
[1721099511248,15.63,156.64,156.6,12.8769]
[1721099511621,22.0141,156.64,156.6,6.4913]
[1721099512144,15.63,156.64,156.6,12.8769]
[1721099512452,15.63,156.64,156.6,14.15386233]
[1721099512925,15.63,156.64,156.6,12.8769]
[1721099513248,15.63,156.64,156.6,14.15386234]
[1721099513747,15.63,156.64,156.6,12.8769]
[1721099514046,15.63,156.63,156.59,16.3132]
[1721099514221,22.0145,156.63,156.59,16.3132]
[1721099514545,15.63,156.62,156.59,16.3132]
[1721099516633,15.63,156.61,156.57,6.3868]
[1721099516945,15.63,156.61,156.58,6.3865]
[1721099517862,15.63,156.63,156.59,1.27707094]
[1721099518227,15.63,156.63,156.6,6.3855]
[1721099518444,6.3836,156.65,156.6,6.3855]
[1721099518649,15.63,156.63,156.6,6.3855]
[1721099519440,15.63,156.63,156.59,6.386]
[1721099520132,6.3837,156.65,156.6,6.3856]
[1721099520337,15.63,156.63,156.6,6.3856]
[1721099521360,16.65769367,156.68,156.58,15.63]
[1721099521666,15.63,156.63,156.58,15.63]
[1721099521955,16.65769367,156.68,156.59,15.63]
[1721099522137,15.63,156.64,156.59,15.63]
[1721099522338,15.63,156.64,156.6,6.3855]
[1721099523871,15.63,156.66,156.62,6.3848]
[1721099524359,6.3828,156.67,156.6,22.6544]
[1721099524360,6.3836,156.65,156.6,22.6544]
[1721099524668,6.3833,156.66,156.61,1.27696497]
[1721099524845,22.0133,156.66,156.61,16.90696497]
[1721099525347,22.0133,156.66,156.61,23.29206497]
[1721099525542,22.0133,156.66,156.62,6.3848]
[1721099525744,13.04039367,156.68,156.62,1.27674907]
[1721099525950,15.63,156.67,156.62,15.63]
[1721099526343,15.63,156.67,156.63,6.3843]
[1721099526546,15.63,156.66,156.62,6.3848]
[1721099527165,6.65769367,156.68,156.63,6.3844]
[1721099527463,15.63,156.67,156.63,6.3844]
[1721099527669,15.63,156.66,156.63,6.3844]
[1721099527875,6.65769367,156.68,156.64,6.3837]
[1721099528046,15.63,156.66,156.64,6.3837]
[1721099529456,13.04009367,156.68,156.64,6.3837]
[1721099529653,15.63,156.66,156.64,6.3837]
[1721099529958,15.63,156.67,156.63,6.3844]
[1721099530566,15.63,156.66,156.63,6.3844]
[1721099534372,13.04009367,156.68,156.63,6.3844]
[1721099534680,15.63,156.67,156.63,6.3844]
[1721099535170,6.65769367,156.68,156.64,16.90668587]
[1721099535470,15.63,156.68,156.65,15.0166]
[1721099535780,15.63,156.68,156.65,21.4001]
[1721099535945,15.63,156.69,156.66,1.16542085]
[1721099536152,15.63,156.69,156.66,6.3831]
[1721099537172,0.1072084,156.71,156.66,6.3831]
[1721099537479,15.63,156.69,156.67,6.3828]
[1721099537681,23.76695324,156.73,156.67,6.3828]
[1721099537977,15.63,156.7,156.67,6.3828]
[1721099538675,15.63,156.7,156.66,6.3831]
[1721099542784,6.3812,156.71,156.66,6.3831]
[1721099542955,23.48911982,156.73,156.67,1.27644848]
[1721099543275,15.63,156.7,156.68,6.3824]
[1721099543576,6.3808,156.72,156.68,6.3824]
[1721099543881,15.63,156.7,156.68,6.3824]
[1721099544072,15.63,156.7,156.67,13.70134848]
[1721099544274,15.63,156.7,156.67,12.4249]
[1721099544657,6.3804,156.73,156.68,7.65868989]
[1721099544987,15.63,156.72,156.68,7.65868989]
[1721099545183,6.38,156.74,156.69,6.3818]
[1721099545370,6.38,156.74,156.7,6.3815]
[1721099545680,6.65994749,156.75,156.7,22.1358]
[1721099545681,15.63,156.73,156.7,22.1358]
[1721099546065,15.63,156.73,156.71,6.3811]
[1721099546271,15.63,156.73,156.7,15.7543]
[1721099547387,15.63,156.73,156.7,22.1356]
[1721099549061,6.38,156.74,156.7,22.1356]
[1721099549062,15.63,156.74,156.7,22.1356]
[1721099549488,6.3795,156.76,156.7,22.1356]
[1721099549791,15.63,156.74,156.7,22.1356]
[1721099550367,6.3795,156.76,156.71,6.3811]
[1721099550563,6.3795,156.76,156.71,7.65711123]
[1721099550891,6.3795,156.76,156.72,6.3807]
[1721099551061,15.63,156.75,156.72,6.3807]
[1721099551674,22.0095,156.76,156.72,7.65665103]
[1721099552066,6.3788,156.77,156.72,6.3807]
[1721099552590,15.63,156.76,156.72,6.3807]
[1721099552972,36.31218077,156.79,156.72,6.3807]
[1721099553292,15.63,156.78,156.74,6.3799]
[1721099553595,15.63,156.77,156.74,7.65575792]
[1721099553969,15.63,156.78,156.74,7.65575792]
[1721099554291,6.378,156.79,156.75,15.868]
[1721099554587,22.008,156.79,156.75,15.868]
[1721099555976,15.63,156.78,156.75,17.14377453]
[1721099557675,6.65743313,156.82,156.75,23.52327453]
[1721099557872,15.63,156.79,156.75,23.52327453]
[1721099559277,15.63,156.8,156.75,31.498]
[1721099559874,15.63,156.8,156.77,6.3786]
[1721099565688,15.63,156.79,156.75,15.868]
[1721099565900,15.63,156.79,156.77,6.3786]
[1721099566688,15.63,156.78,156.77,6.3786]
[1721099567070,15.63,156.78,156.76,6.379]
[1721099569075,15.63,156.79,156.75,15.868]
[1721099569589,15.63,156.79,156.77,6.3786]
[1721099569784,10.1072084,156.83,156.77,6.3786]
[1721099569785,15.63,156.78,156.77,6.3786]
[1721099570197,16.4836084,156.83,156.76,1.27571294]
[1721099570493,15.63,156.8,156.79,6.3779]
[1721099570804,15.63,156.8,156.77,6.3785]
[1721099571097,15.63,156.79,156.77,6.3785]
[1721099571296,13.03377225,156.84,156.75,15.868]
[1721099571481,15.63,156.79,156.75,15.868]
[1721099571893,15.63,156.78,156.75,15.868]
[1721099572393,15.63,156.78,156.77,6.3784]
[1721099574601,15.63,156.78,156.75,22.2475]
[1721099574798,15.63,156.76,156.75,22.2475]
[1721099576212,15.63,156.76,156.75,6.3795]
[1721099577086,15.63,156.76,156.65,15.6164]
[1721099577087,10.0,156.69,156.65,15.6164]
[1721099577308,15.63,156.66,156.62,6.3846]
[1721099577592,15.63,156.65,156.63,6.3842]
[1721099577896,15.9492,156.75,156.56,16.444021]
[1721099577897,10.0,156.68,156.56,0.814021]
[1721099578103,10.0,156.66,156.58,15.63]
[1721099578300,10.0,156.68,156.56,0.814021]
[1721099578491,10.0,156.68,156.63,6.3844]
[1721099578691,15.63,156.66,156.63,6.3844]
[1721099578887,15.63,156.65,156.56,0.814021]
[1721099579111,16.3824,156.68,156.56,0.814021]
[1721099579112,15.63,156.64,156.59,15.63]
[1721099579315,15.63,156.64,156.61,6.3851]
[1721099579611,10.0,156.68,156.63,6.3844]
[1721099579916,15.63,156.64,156.63,6.3844]
[1721099580508,24.57514633,156.7,156.64,6.3839]
[1721099580720,15.63,156.65,156.64,6.3839]
[1721099580895,14.62324734,156.73,156.64,21.6783]
[1721099581092,15.63,156.73,156.69,6.3818]
[1721099581309,15.63,156.72,156.69,6.3818]
[1721099581509,15.63,156.72,156.68,6.3824]
[1721099581712,6.65865479,156.8,156.66,19.2]
[1721099582018,6.65865479,156.8,156.65,45.0]
[1721099582019,15.63,156.74,156.71,6.3811]
[1721099582309,15.63,156.72,156.7,22.8158]
[1721099582889,15.63,156.72,156.71,6.3812]
[1721099583093,15.63,156.72,156.7,16.4345]
[1721099583395,15.63,156.72,156.68,6.5148]
[1721099583598,6.0248,156.79,156.7,6.3815]
[1721099583599,16.3791,156.77,156.7,6.3815]
[1721099583801,15.63,156.72,156.68,6.5148]
[1721099584095,15.63,156.73,156.68,6.5148]
[1721099584412,16.3791,156.77,156.71,6.3812]
[1721099584609,15.63,156.73,156.71,6.3812]
[1721099585020,15.63,156.73,156.7,6.3816]
[1721099585321,15.63,156.72,156.7,6.3816]
[1721099585501,15.63,156.72,156.68,6.5148]
[1721099585704,6.3791,156.77,156.7,6.3814]
[1721099585900,15.63,156.72,156.7,6.3814]
[1721099587897,15.63,156.73,156.69,6.382]
[1721099588503,10.0,156.76,156.7,6.3815]
[1721099588706,15.63,156.73,156.7,6.3815]
[1721099589219,15.63,156.74,156.71,6.3812]
[1721099589911,16.3791,156.76,156.71,6.3812]
[1721099590100,15.63,156.74,156.71,6.3812]
[1721099590515,16.3791,156.76,156.71,6.3812]
[1721099590723,15.63,156.74,156.71,6.3812]
[1721099591026,15.63,156.74,156.7,6.3815]
[1721099594823,6.3792,156.76,156.71,6.3811]
[1721099595010,15.63,156.74,156.71,6.3811]
[1721099595527,15.63,156.74,156.7,6.3816]
[1721099595727,15.63,156.73,156.7,6.3816]
[1721099596129,15.63,156.72,156.69,6.3819]
[1721099596519,15.63,156.72,156.7,6.3815]
[1721099596826,15.63,156.73,156.7,6.3815]
[1721099597902,6.3792,156.76,156.71,6.3812]
[1721099598230,15.63,156.74,156.71,6.3812]
[1721099601127,15.63,156.74,156.68,6.5148]
[1721099601128,22.0102,156.74,156.68,6.5148]
[1721099601323,22.0102,156.74,156.69,6.382]
[1721099601324,15.63,156.73,156.69,6.382]
[1721099601655,15.63,156.72,156.68,6.3823]
[1721099601812,15.63,156.71,156.68,6.3823]
[1721099602414,6.3799,156.75,156.7,6.3816]
[1721099602619,15.63,156.73,156.7,6.3816]
[1721099602815,6.3792,156.76,156.71,6.3811]
[1721099603130,15.63,156.73,156.71,6.3811]
[1721099603834,15.63,156.73,156.7,6.3815]
[1721099605018,15.63,156.74,156.7,6.3815]
[1721099605532,15.63,156.76,156.71,16.90625387]
[1721099605735,15.63,156.76,156.7,15.63]
[1721099606134,15.63,156.76,156.72,6.3807]
[1721099606742,22.0091,156.77,156.72,22.0107]
[1721099607535,6.3791,156.77,156.72,22.0107]
[1721099607847,15.63,156.77,156.73,6.3803]
[1721099610457,16.378,156.79,156.74,6.3799]
[1721099610627,15.63,156.78,156.74,6.3799]
[1721099611224,16.378,156.79,156.74,6.3799]
[1721099611446,15.63,156.78,156.74,6.3799]
[1721099611751,6.65863246,156.8,156.76,15.63]
[1721099611925,15.63,156.81,156.76,16.90562282]
[1721099612132,15.63,156.82,156.77,15.63]
[1721099612842,15.63,156.82,156.78,6.378]
[1721099613044,15.63,156.82,156.78,24.2703366]
[1721099615527,13.0337108,156.83,156.78,24.2703366]
[1721099615733,15.63,156.82,156.78,22.9948]
[1721099616424,22.0067,156.82,156.78,16.6168]
[1721099617055,15.63,156.82,156.78,22.9951]
[1721099618051,13.0338108,156.83,156.78,24.27058586]
[1721099618255,15.63,156.82,156.78,24.27058586]
[1721099618448,22.0068,156.82,156.78,16.6168]
[1721099618650,15.63,156.81,156.78,16.6168]
[1721099618963,22.0076,156.8,156.78,16.6168]
[1721099619251,15.63,156.8,156.78,16.6168]
[1721099620445,6.3772,156.81,156.78,16.6168]
[1721099620758,16.6574108,156.83,156.78,16.6168]
[1721099620938,15.63,156.81,156.78,16.6168]
[1721099621339,15.63,156.8,156.78,16.6168]
[1721099622540,6.3767,156.82,156.78,16.6168]
[1721099622745,15.63,156.8,156.78,16.6168]
[1721099622950,15.63,156.81,156.78,16.6168]
[1721099623757,15.63,156.81,156.78,22.995]
[1721099628948,6.6574108,156.83,156.78,22.995]
[1721099629160,15.63,156.81,156.78,22.995]
[1721099629759,15.63,156.81,156.78,16.6168]
[1721099630258,15.63,156.81,156.78,22.9951]
[1721099631563,15.63,156.81,156.78,16.6168]
[1721099631863,15.63,156.8,156.78,16.6168]
[1721099632058,15.63,156.8,156.78,22.9951]
[1721099632675,15.63,156.81,156.78,22.9951]
[1721099636572,13.0337108,156.83,156.78,22.9951]
[1721099636869,15.63,156.81,156.78,22.9951]
[1721099640563,15.63,156.81,156.78,16.6168]
[1721099640759,15.63,156.79,156.74,6.0051]
[1721099641075,15.63,156.79,156.75,6.3795]
[1721099641249,15.63,156.79,156.74,21.6351]
[1721099641250,22.008,156.79,156.74,21.6351]
[1721099641451,15.63,156.78,156.74,12.3847]
[1721099641962,6.3775,156.8,156.75,6.3795]
[1721099642264,15.63,156.79,156.75,6.3795]
[1721099642988,15.63,156.78,156.75,6.3795]
[1721099643171,15.63,156.79,156.76,6.3788]
[1721099644085,15.63,156.79,156.74,21.6351]
[1721099645375,15.63,156.79,156.76,6.3791]
[1721099646382,6.3772,156.81,156.76,6.3791]
[1721099646577,15.63,156.79,156.76,6.3791]
[1721099647688,6.3772,156.81,156.76,6.3791]
[1721099647865,15.63,156.79,156.76,6.3791]
[1721099649687,23.0340108,156.83,156.77,1.27566673]
[1721099649893,13.0340108,156.83,156.77,1.27566673]
[1721099650078,15.63,156.82,156.77,16.90566673]
[1721099650276,15.63,156.82,156.78,6.3782]
[1721099650668,15.63,156.82,156.79,6.3779]
[1721099651067,13.0340108,156.83,156.79,6.3779]
[1721099651304,15.63,156.82,156.78,22.1333]
[1721099653082,15.63,156.82,156.79,6.3778]
[1721099653394,22.2874108,156.83,156.8,6.3775]
[1721099653783,15.63,156.82,156.8,6.3775]
[1721099655079,15.63,156.82,156.79,6.3778]
[1721099658281,15.63,156.82,156.8,6.3774]
[1721099658479,6.6574108,156.83,156.81,6.377]
[1721099658679,6.6574108,156.83,156.8,1.27532287]
[1721099658984,6.6574108,156.83,156.8,16.90532287]
[1721099659500,6.6574108,156.83,156.82,6.3767]
[1721099660904,6.3731,156.91,156.85,6.3751]
[1721099661086,15.63,156.88,156.85,6.3751]
[1721099661291,15.63,156.87,156.83,16.6218]
[1721099661791,10.0,156.9,156.83,32.2518]
[1721099661989,15.63,156.89,156.84,1.27504661]
[1721099662177,6.65941182,156.91,156.83,32.2518]
[1721099662382,15.63,156.89,156.83,32.2518]
[1721099663692,13.03281182,156.91,156.83,32.2518]
[1721099663896,15.63,156.89,156.83,32.2518]
[1721099664093,13.03281182,156.91,156.83,16.6218]
[1721099664094,15.63,156.87,156.83,16.6218]
[1721099664285,15.63,156.85,156.79,22.9012]
[1721099664601,10.0,156.88,156.79,38.5312]
[1721099664602,15.63,156.84,156.79,38.5312]
[1721099666309,15.63,156.84,156.82,6.3766]
[1721099666478,6.3747,156.87,156.82,6.3766]
[1721099666681,10.0,156.86,156.79,22.9012]
[1721099666878,15.63,156.82,156.79,22.9012]
[1721099667497,15.63,156.83,156.79,22.9012]
[1721099667692,10.0,156.86,156.81,6.3771]
[1721099667693,6.3755,156.85,156.81,6.3771]
[1721099667879,15.63,156.82,156.81,6.3771]
[1721099668084,15.63,156.83,156.81,6.3771]
[1721099668501,6.3747,156.87,156.82,6.3766]
[1721099668709,15.63,156.84,156.8,6.3772]
[1721099669190,15.63,156.83,156.8,6.3772]
[1721099669385,6.3751,156.86,156.8,6.3772]
[1721099669582,15.63,156.83,156.81,6.3769]
[1721099670617,15.63,156.83,156.82,6.3767]
[1721099670815,15.63,156.84,156.82,6.3767]
[1721099671124,6.3742,156.89,156.79,22.9012]
[1721099671418,15.63,156.86,156.81,15.63]
[1721099672202,6.3742,156.89,156.8,45.0]
[1721099672203,15.63,156.87,156.82,16.90510846]
[1721099672405,15.63,156.87,156.82,15.63]
[1721099673016,15.63,156.86,156.81,15.63]
[1721099674125,15.63,156.85,156.8,60.63]
[1721099674613,15.63,156.86,156.81,15.63]
[1721099674795,15.63,156.87,156.82,45.0]
[1721099675410,15.63,156.87,156.81,15.63]
[1721099675613,15.63,156.86,156.81,15.63]
[1721099676114,15.63,156.85,156.8,15.63]
[1721099676317,15.63,156.85,156.81,45.0]
[1721099676612,15.63,156.85,156.79,22.9012]
[1721099676821,15.63,156.85,156.8,15.63]
[1721099681425,10.0,156.89,156.81,15.63]
[1721099681744,15.63,156.86,156.81,15.63]
[1721099682218,15.63,156.87,156.82,15.63]
[1721099682517,13.03079161,156.9,156.82,15.63]
[1721099682716,15.63,156.87,156.82,15.63]
[1721099683405,13.03079161,156.9,156.82,15.63]
[1721099683607,15.63,156.87,156.82,15.63]
[1721099684214,15.63,156.86,156.8,15.63]
[1721099684424,15.63,156.86,156.81,60.63]
[1721099686020,15.63,156.87,156.82,15.63]
[1721099687198,15.63,156.86,156.81,60.63]
[1721099688726,15.63,156.87,156.82,15.63]
[1721099689419,6.3741,156.89,156.82,15.63]
[1721099689624,15.63,156.87,156.82,15.63]
[1721099689920,6.65729161,156.9,156.82,15.63]
[1721099690118,15.63,156.88,156.83,16.90510729]
[1721099690833,15.63,156.89,156.84,31.0451]
[1721099693124,6.3727,156.92,156.84,37.6832]
[1721099693324,15.63,156.89,156.84,37.6832]
[1721099694741,6.3727,156.92,156.84,37.6832]
[1721099694919,6.3727,156.92,156.86,15.63]
[1721099695228,15.63,156.91,156.86,15.63]
[1721099697026,6.3731,156.91,156.84,22.0532]
[1721099697232,15.63,156.9,156.84,37.6832]
[1721099699929,6.3731,156.91,156.84,37.6832]
[1721099700111,15.63,156.9,156.84,22.0532]
[1721099700322,15.63,156.88,156.84,22.0532]
[1721099700641,16.3734,156.91,156.84,22.0532]
[1721099700822,15.63,156.89,156.84,22.0532]
[1721099702034,6.3734,156.91,156.84,22.0532]
[1721099702328,15.63,156.89,156.84,37.6832]
[1721099703306,15.63,156.9,156.84,22.0532]
[1721099703513,6.65769299,156.92,156.85,15.63]
[1721099703713,15.63,156.91,156.85,15.63]
[1721099703934,6.65769299,156.92,156.85,15.63]
[1721099704112,15.63,156.9,156.85,15.63]
[1721099705845,15.63,156.91,156.85,15.63]
[1721099706022,6.65769299,156.92,156.86,45.0]
[1721099706210,15.63,156.93,156.88,15.63]
[1721099706718,15.63,156.93,156.87,15.63]
[1721099707132,15.63,156.92,156.87,15.63]
[1721099708029,15.63,156.92,156.86,45.0]
[1721099708215,15.63,156.92,156.86,15.63]
[1721099709125,15.63,156.91,156.86,15.63]
[1721099709329,10.0,156.93,156.84,22.0532]
[1721099709640,15.63,156.88,156.84,22.0532]
[1721099710633,6.3731,156.91,156.84,22.0532]
[1721099710945,6.3726,156.92,156.84,22.0532]
[1721099711241,15.63,156.9,156.84,37.6832]
[1721099712213,6.3726,156.92,156.85,45.0]
[1721099712429,15.63,156.9,156.85,45.0]
[1721099712634,15.63,156.9,156.84,22.0532]
[1721099712825,15.63,156.9,156.84,37.6832]
[1721099713030,15.63,156.89,156.84,37.6832]
[1721099716944,23.02177167,156.94,156.85,15.63]
[1721099717119,15.63,156.91,156.86,60.63]
[1721099717322,13.02177167,156.94,156.86,60.63]
[1721099717626,15.63,156.91,156.86,60.63]
[1721099718223,13.02177167,156.94,156.86,60.63]
[1721099718426,15.63,156.92,156.86,60.63]
[1721099718837,13.02177167,156.94,156.86,60.63]
[1721099719044,15.63,156.91,156.86,60.63]
[1721099720927,13.02147167,156.94,156.86,60.63]
[1721099721128,15.63,156.92,156.86,60.63]
[1721099721548,15.63,156.88,156.84,22.0532]
[1721099721738,15.63,156.87,156.84,22.0532]
[1721099723063,6.3735,156.9,156.84,22.0532]
[1721099723228,15.63,156.88,156.84,22.0532]
[1721099724748,6.64957167,156.94,156.87,15.63]
[1721099724928,16.3723,156.93,156.84,22.0532]
[1721099725131,15.63,156.89,156.84,22.0532]
[1721099725356,15.63,156.89,156.84,37.6832]
[1721099725732,16.64714504,156.93,156.85,15.63]
[1721099725949,23.01974504,156.93,156.86,15.63]
[1721099726155,15.63,156.91,156.86,15.63]
[1721099726458,15.63,156.91,156.85,15.63]
[1721099727251,15.63,156.9,156.84,22.0532]
[1721099727457,15.63,156.9,156.85,15.63]
[1721099727753,6.64714504,156.93,156.86,15.63]
[1721099727955,15.63,156.91,156.86,15.63]
[1721099728858,10.0,156.95,156.87,60.63]
[1721099729156,10.0,156.95,156.88,15.63]
[1721099729360,15.63,156.93,156.88,15.63]
[1721099729759,15.63,156.94,156.88,15.63]
[1721099730552,15.63,156.94,156.89,15.3918]
[1721099730762,15.63,156.95,156.89,31.0218]
[1721099732361,16.3706,156.97,156.89,31.0218]
[1721099732666,15.63,156.95,156.89,31.0218]
[1721099733841,15.63,156.95,156.9,6.0322]
[1721099734549,16.3706,156.97,156.89,15.3918]
[1721099734550,10.0,156.93,156.89,15.3918]
[1721099734742,15.63,156.9,156.85,21.9322]
[1721099735339,16.3717,156.95,156.85,37.5622]
[1721099735556,15.63,156.91,156.85,37.5622]
[1721099736261,15.63,156.9,156.85,21.9322]
[1721099736787,15.63,156.9,156.85,37.5622]
[1721099736938,16.3718,156.95,156.85,37.5622]
[1721099737144,15.63,156.91,156.86,60.63]
[1721099738459,15.63,156.91,156.86,15.63]
[1721099738648,15.63,156.9,156.85,37.5622]
[1721099738848,15.63,156.87,156.85,15.9]
[1721099739051,15.63,156.86,156.81,37.5622]
[1721099739262,6.374,156.89,156.81,37.5622]
[1721099739442,15.63,156.86,156.81,37.5622]
[1721099740136,15.63,156.87,156.82,15.63]
[1721099743041,15.63,156.88,156.82,15.63]
[1721099743439,15.13,156.88,156.82,15.63]
[1721099743658,15.13,156.88,156.82,16.9051419]
[1721099743966,15.13,156.88,156.82,15.63]
[1721099744360,15.63,156.87,156.82,15.63]
[1721099744867,6.3739,156.89,156.81,21.9322]
[1721099745161,15.63,156.84,156.81,21.9322]
[1721099745356,6.3748,156.87,156.81,21.9322]
[1721099745539,15.63,156.84,156.81,15.9]
[1721099745742,15.63,156.83,156.77,37.8534]
[1721099746142,15.63,156.82,156.77,22.2234]
[1721099746339,6.3761,156.84,156.77,22.2234]
[1721099746556,15.63,156.81,156.77,22.2234]
[1721099746868,15.63,156.81,156.79,6.3776]
[1721099747067,15.63,156.81,156.8,6.3775]
[1721099748142,15.63,156.82,156.8,6.3775]
[1721099749070,15.63,156.82,156.79,6.3775]
[1721099749372,15.63,156.81,156.8,6.3775]
[1721099750141,15.63,156.82,156.8,6.3775]
[1721099751242,15.63,156.81,156.77,22.2234]
[1721099751860,15.63,156.81,156.79,6.3776]
[1721099752069,15.63,156.8,156.79,6.3776]